Cogmind - Beta 15 @@@ ROGUE MODE // 2025.06.15 @ 21:07:03 Player: EX-OCT Result: Destroyed by Y-54 Guardian with Gatling Laser Performance ------------- Evolutions (3) 1500 Regions Visited (11) 2200 Robots Destroyed (118) 590 Value Destroyed (5300) 5300 Prototype IDs (5) 100 Alien Tech Used (0) 0 Bonus (4478) 4478 TOTAL SCORE: 14168 Bonus ------- High Alert Combat Kills 518 Follower Combat Kills 1360 Entered Garrisons 600 Used RIF Installer 2000 Cogmind --------- Core Integrity 0/700 Matter 300/300 Energy 159/160 System Corruption 5% Temperature Cool (18) Movement Hovering (110) Ox1 Location -7/Garrison Parts ------- > --- POWER (1) -------- Light Nuclear Core > --- PROPULSION (5) --- Gyrokinetic Inverter Gyrokinetic Inverter Gyrokinetic Inverter Improved Flight Unit > --- UTILITY (5) ------ Advanced Melee Analysis Suite Improved Transmission Jammer Improved Light Armor Plating Relay Coupler [NC] (24) Relay Coupler [Grunt] (16) > --- WEAPON (2) ------- Heavy Pick > --- INVENTORY (5) ---- Relay Coupler [NC] (30) Relay Coupler [NC] (29) Relay Coupler [Hunter] (19) Relay Coupler [Behemoth] (10) Heavy Pick Peak State ------------ > --- POWER ------------ Light Nuclear Core > --- PROPULSION ------- Gyrokinetic Inverter Gyrokinetic Inverter Gyrokinetic Inverter Improved Flight Unit Improved Flight Unit > --- UTILITY ---------- Advanced Melee Analysis Suite Improved Transmission Jammer Layered Medium Armor Plating Relay Coupler [NC] Relay Coupler [Grunt] > --- WEAPON ----------- Improved Remote Datajack Heavy Pick > --- INVENTORY -------- Relay Coupler [NC] Relay Coupler [Hunter] Relay Coupler [Behemoth] Improved Remote Datajack Heavy Pick [Rating: 60] Favorites ----------- Power Light Nuclear Core Engine Improved Ion Engine Power Core Light Nuclear Core Propulsion Improved Flight Unit Treads Light Treads Leg Carbon-fiber Leg Hover Unit Gyrokinetic Inverter Flight Unit Improved Flight Unit Utility Hacking Suite Device Sensor Array Processor Advanced Melee Analysis Suite Hackware Hacking Suite Protection Improved Core Shielding Weapon Improved Assault Rifle Energy Gun Small Laser Energy Cannon Advanced Beam Cannon Ballistic Gun Improved Assault Rifle Launcher Rocket Launcher Special Weapon Improved Remote Datajack Impact Weapon Great Maul Slashing Weapon Chainsword Piercing Weapon Heavy Pick Special Melee Weapon Improved Datajack Build | -11 -10 -10 -9 -9 -8 -8 -8 -7 -7 -7 -7 ------- Run | Yrd Mat Min Mat Min Mat Gar Mat Fac Gar Fac Gar Slots Evolved 6 | . . . 2 . 2 . . 2 . . . Power . | . . . . . . . . . . . . Propulsion 3 | . . . 1 . 1 . . 1 . . . Utility 3 | . . . 1 . 1 . . 1 . . . Weapon . | . . . . . . . . . . . . Parts Attached 111 | 5 9 1 18 1 15 15 . 1 28 1 17 Power 14 | . 2 . 2 1 3 1 . . 2 . 3 Engine 9 | . 2 . 2 1 3 1 . . . . . Core 5 | . . . . . . . . . 2 . 3 Reactor . | . . . . . . . . . . . . Propulsion 37 | 2 5 . 6 . 3 3 . . 12 . 6 Treads 2 | 2 . . . . . . . . . . . Leg 3 | . . . . . . . . . 3 . . Wheel . | . . . . . . . . . . . . Hover 7 | . 1 . . . . . . . . . 6 Flight 25 | . 4 . 6 . 3 3 . . 9 . . Utility 36 | 1 2 . 4 . 4 6 . 1 11 1 6 Device 8 | 1 1 . 2 . 1 1 . . 1 . 1 Storage . | . . . . . . . . . . . . Processor 3 | . . . 1 . 1 . . . . . 1 Hackware 12 | . . . 1 . . 3 . 1 6 . 1 Protection 13 | . 1 . . . 2 2 . . 4 1 3 Artifact . | . . . . . . . . . . . . Weapon 24 | 2 . 1 6 . 5 5 . . 3 . 2 Energy Gun 4 | 2 . . 1 . . 1 . . . . . Energy Cannon 2 | . . . 2 . . . . . . . . Ballistic Gun 7 | . . . 3 . 4 . . . . . . Ballistic Cannon . | . . . . . . . . . . . . Launcher 1 | . . 1 . . . . . . . . . Special Weapon 3 | . . . . . . . . . 2 . 1 Impact Weapon 1 | . . . . . 1 . . . . . . Slashing Weapon 4 | . . . . . . 3 . . 1 . . Piercing Weapon 1 | . . . . . . . . . . . 1 Special Melee Weapon 1 | . . . . . . 1 . . . . . Unidentified Prototypes 5 | . . . 3 . 2 . . . . . . Parts Lost 41 | . 1 1 2 . 2 11 . . 12 . 12 Power 6 | . . . 1 . . 1 . . 2 . 2 Propulsion 12 | . 1 . . . . 2 . . 5 . 4 Utility 15 | . . 1 1 . 1 4 . . 4 . 4 Weapon 8 | . . . . . 1 4 . . 1 . 2 Highest Loss Streak 8 | . 1 1 1 . 1 7 . . 8 . 2 To Critical Strikes . | . . . . . . . . . . . . Average Backups 4 | . 1 5 4 5 4 3 4 3 3 5 4 Power . | . . . . . . . . . . . . Propulsion 1 | . . 3 2 2 1 . 1 . . . . Utility 1 | . . . . . . 1 3 3 2 3 3 Weapon 1 | . 1 2 2 3 2 . . . . 1 1 Tool/Special . | . . . . . . . . . . . . Unused Backups 10 | . . 1 1 . . . . . 2 . 6 Power . | . . . . . . . . . . . . Propulsion 1 | . . . 1 . . . . . . . . Utility 6 | . . . . . . . . . 2 . 4 Weapon 3 | . . 1 . . . . . . . . 2 Tool/Special . | . . . . . . . . . . . . Average Slot Usage (%) 90 | . 73 75 90 100 94 85 95 90 89 100 94 Engine 5 | . 2 14 11 11 9 8 8 7 . . . Core 2 | . . . . . . . . . 5 7 6 Hover 4 | . 4 . . . . . . . . . 21 Flight 28 | . 11 28 33 33 34 35 36 37 29 38 14 Device 5 | . 14 4 13 22 7 2 . . 1 . 5 Processor 2 | . . . 9 . . . . . . . 5 Hackware 13 | . . . . 11 9 11 15 14 23 30 16 Protection 8 | . . 14 . . 14 13 18 15 8 7 6 Energy Gun 2 | . 27 14 2 . . . . . . . . Ballistic Gun 4 | . . . 14 22 15 1 . . . . . Special Weapon 2 | . . . . . . . . . 6 7 5 Impact Weapon 2 | . . . . . 2 4 9 7 6 . . Piercing Weapon 1 | . . . . . . . . . . . 5 Special Melee Weapon 1 | . . . . . . 3 9 7 . . . Peak Build Rating 60 | 5 7 8 23 23 32 36 33 38 50 45 60 Average Rating 32 | 3 5 5 17 22 28 30 32 37 40 44 52 On Entrance 23 | . 5 6 5 23 22 31 33 32 38 45 44 Naked Turns . | . . . . . . . . . . . . Heaviest Build 28 | 3 8 8 15 15 20 20 15 15 28 20 21 Greatest Support 42 | 3 8 8 15 15 20 21 21 26 42 22 33 Greatest Overweight (x) 2 | . . . . . 1 1 . . 1 . 2 Average Overweight (x) . | . . . . . . . . . . . . Largest Inventory Capacity 5 | 5 5 5 5 5 5 5 5 5 5 5 5 Average Capacity 5 | 5 5 5 5 5 5 5 5 5 5 5 5 Most Carried 5 | 1 5 5 5 5 5 5 4 4 5 5 5 Average Carried 4 | . 1 4 4 5 4 3 4 3 3 5 4 Final Capacity 5 | 5 5 5 5 5 5 5 5 5 5 5 5 Final Carried 5 | 1 5 5 5 5 5 4 4 3 5 5 5 Class Distribution -------------------- 25% | Mutant 21% | Bothacker-Sprinter 15% | Sprinter 14% | Bothacker-Mutant 6% | Commander-Mutant 5% | Scavenger-Sprinter 5% | Hacker-Sprinter 3% | Scavenger-Mutant Dominant Class ---------------- Mutant | -10/Materials Mutant | -10/Mines Mutant | -9/Materials Mutant | -9/Mines Sprinter | -8/Materials Sprinter | -8/Garrison Bothacker-Sprinter | -8/Materials Hacker-Sprinter | -7/Factory Bothacker-Sprinter | -7/Garrison Bothacker-Sprinter | -7/Factory Bothacker-Mutant | -7/Garrison Resources | -11 -10 -10 -9 -9 -8 -8 -8 -7 -7 -7 -7 ----------- Run | Yrd Mat Min Mat Min Mat Gar Mat Fac Gar Fac Gar Matter Collected 2599 | 250 90 22 475 100 541 308 10 . 573 . 230 Remotely . | . . . . . . . . . . . . Salvage Created 4203 | 87 135 26 995 119 744 629 41 . 583 . 844 Parts 238 | 6 14 7 74 20 40 30 . . 15 . 32 Haulers Intercepted 8 | . 1 . 5 . 2 . . . . . . Recyclers Shooed . | . . . . . . . . . . . . Parts Field Recycled . | . . . . . . . . . . . . Retrieved Matter . | . . . . . . . . . . . . Parts Self-Destructed . | . . . . . . . . . . . . Prevented . | . . . . . . . . . . . . Kills | -11 -10 -10 -9 -9 -8 -8 -8 -7 -7 -7 -7 ------- Run | Yrd Mat Min Mat Min Mat Gar Mat Fac Gar Fac Gar Combat Hostiles Destroyed 98 | . 6 3 16 8 14 18 1 . 15 . 17 Melee 39 | . . . . . . 13 1 . 8 . 17 Guns 44 | . 6 . 15 8 13 2 . . . . . Cannons 1 | . . . 1 . . . . . . . . AOE 5 | . . 3 . . . 2 . . . . . Classes Destroyed 15 | 2 2 . 4 . 1 1 . . 4 . 1 Tunneler 1 | 1 . . . . . . . . . . . Hauler 8 | . 1 . 5 . 2 . . . . . . Recycler 2 | 1 . . . . 1 . . . . . . Operator 3 | . . . 2 . 1 . . . . . . Watcher 6 | . . . 3 . 1 1 . . . . 1 Swarmer 44 | . 6 3 5 8 6 6 . . 4 . 6 Saboteur 2 | . . . . . . 1 . . . . 1 Grunt 16 | . . . 5 . 2 3 1 . 3 . 2 Brawler 2 | . . . . . . . . . 1 . 1 Duelist 1 | . . . . . . . . . 1 . . Sentry 15 | . . . 6 . 4 2 . . 2 . 1 Demolisher 2 | . . . . . . . . . 2 . . Specialist 4 | . . . . . . . . . . . 4 Hunter 8 | . . . . . 2 6 . . . . . Programmer 4 | . . . . . . . . . 2 . 2 Best Kill Streak 8 | 1 3 3 8 3 8 7 1 . 2 . 3 Combat Bots Only 7 | . 3 3 5 3 7 7 1 . 2 . 3 Max Kills in Single Turn 3 | 1 1 3 1 1 1 1 1 . 1 . 1 Gunslinging . | . . . . . . . . . . . . Exploded 3 | . . 3 . . . 1 . . . . . Melee 1 | . . . . . . 1 1 . 1 . 1 Uniques/NPCs Destroyed . | . . . . . . . . . . . . Combat | -11 -10 -10 -9 -9 -8 -8 -8 -7 -7 -7 -7 -------- Run | Yrd Mat Min Mat Min Mat Gar Mat Fac Gar Fac Gar Hostile Shots Fired 666 | . 28 3 67 32 83 176 . . 109 . 168 Missed 215 | . 7 1 31 13 32 50 . . 32 . 49 Hits 451 | . 21 2 36 19 51 126 . . 77 . 119 Melee 1 | . . . . . . 1 . . . . . Projectile 450 | . 21 2 36 19 51 125 . . 77 . 119 AOE 2 | . . . . . . . . . . . 2 Critical Strikes 5 | . . . . . 1 . . . 3 . 1 Damage Taken 5855 | . 202 46 364 155 594 1457 . . 1285 . 1752 Core 1497 | . 93 . 143 68 91 399 . . 171 . 532 Absorbed by Shields 273 | . . . . . . 194 . . 34 . 45 Redirected to Shielding 233 | . . . . . 43 121 . . 69 . . Regen/Repaired (Parts) 395 | . . . . . 180 . 63 . 139 . 13 Core Remaining (%) 54 | 100 . 62 . 47 . . 10 . . . . Volleys Fired 200 | 7 13 1 68 14 51 14 . . 29 . 3 Largest 2 | 2 2 2 2 2 2 2 . . 1 . 1 Hottest 136 | 80 80 73 136 46 51 56 . . 7 . 7 Shots Fired 348 | 14 26 2 124 28 98 24 . . 29 . 3 Gun 291 | 14 26 1 103 28 98 21 . . . . . Cannon 21 | . . . 21 . . . . . . . . Launcher 4 | . . 1 . . . 3 . . . . . Special 32 | . . . . . . . . . 29 . 3 Kinetic 229 | . . . 82 28 98 21 . . . . . Thermal 83 | 14 26 1 42 . . . . . . . . Explosive 4 | . . 1 . . . 3 . . . . . Electromagnetic . | . . . . . . . . . . . . Robot Hit Streak 34 | 2 8 1 34 20 14 12 . . 12 . 13 Robot Miss Streak 3 | 2 2 1 3 1 2 2 . . 1 . . Penetration Max 1 | . . . . . 1 1 . . . . . Secondary Targets . | . . . . . . . . . . . . Shots Hit Robots 372 | 7 19 1 80 22 71 54 5 . 65 . 48 Core Hits 123 | 3 8 2 36 8 27 19 1 . 2 . 17 Critical Kills 3 | . . . . . . 1 1 . 1 . . Critical Parts Destroyed 16 | . . . 1 . 1 3 . . 11 . . Critical Strikes 31 | . . . 1 . 1 9 1 . 12 . 7 Destroy 1 | . . . 1 . . . . . . . . Smash 18 | . . . . . 1 4 1 . 12 . . Sever 5 | . . . . . . 5 . . . . . Impale 7 | . . . . . . . . . . . 7 Melee Attacks 373 | . . . . . 8 110 7 . 125 . 123 Impact 180 | . . . . . 8 56 3 . 113 . . Slashing 73 | . . . . . . 47 . . 12 . 14 Piercing 109 | . . . . . . . . . . . 109 Sneak Attacks 20 | . . . . . 2 2 5 . 5 . 6 Combat Hostiles 12 | . . . . . . 1 1 . 5 . 5 Follow-up Attacks . | . . . . . . . . . . . . Damage Inflicted 9477 | 79 225 200 1287 361 1322 2200 59 . 1847 . 1897 Guns 3096 | 79 225 11 1081 361 1085 254 . . . . . Cannons 206 | . . . 206 . . . . . . . . Explosions 419 | . . 189 . . . 230 . . . . . Melee 5756 | . . . . . 237 1716 59 . 1847 . 1897 Ramming . | . . . . . . . . . . . . Kinetic 2641 | . . . 941 361 1085 254 . . . . . Thermal 661 | 79 225 11 346 . . . . . . . . Explosive 419 | . . 189 . . . 230 . . . . . Electromagnetic . | . . . . . . . . . . . . Impact 2501 | . . . . . 237 449 59 . 1756 . . Slashing 1587 | . . . . . . 1267 . . 91 . 229 Piercing 1668 | . . . . . . . . . . . 1668 Highest Corruption 5 | . 2 2 2 2 . . . . 4 4 5 Average Corruption 3 | . 2 2 1 2 . . . . 3 4 4 Corruption Purged . | . . . . . . . . . . . . Corruption Blocked . | . . . . . . . . . . . . Effects 63 | . 1 2 10 3 . . . . 30 . 17 Message Errors 20 | . . . 2 . . . . . 11 . 7 Matter Fused 21 | . . 2 4 1 . . . . 9 . 5 Heat Flow Errors 8 | . . . 2 2 . . . . 3 . 1 Energy Discharges 3 | . . . 2 . . . . . . . 1 Parts Rejected 1 | . . . . . . . . . 1 . . Parts Fused 1 | . . . . . . . . . 1 . . Data Loss (minor) 4 | . . . . . . . . . 2 . 2 Data Loss (major) 3 | . 1 . . . . . . . 1 . 1 Alerts 2 | . . . . . . . . . 2 . . Overload Shots . | . . . . . . . . . . . . Overflow Damage 1381 | . . 53 11 . 110 305 . . 729 . 173 Projectiles 11 | . . . 11 . . . . . . . . Explosions 84 | . . 53 . . . 31 . . . . . Melee 1286 | . . . . . 110 274 . . 729 . 173 Knockbacks 3 | . . . . . . . . . 3 . . Impact 3 | . . . . . . . . . 3 . . Kinetic . | . . . . . . . . . . . . Secondary . | . . . . . . . . . . . . Self-Inflicted Damage 109 | . . 31 . . . 78 . . . . . Shots 3 | . . 1 . . . 2 . . . . . Rammed . | . . . . . . . . . . . . Targets Rammed . | . . . . . . . . . . . . Kicked . | . . . . . . . . . . . . Crushed . | . . . . . . . . . . . . Highest Temperature 456 | 34 49 27 398 184 456 8 . . 236 63 130 Average Temperature 60 | 11 27 13 79 74 106 5 . . 60 30 20 Received Heat Transfer 816 | . 18 . 93 . 63 102 . . 171 . 369 Effects 5 | . . . . . 4 . . . 1 . . Shutdowns 1 | . . . . . 1 . . . . . . Interference 4 | . . . . . 3 . . . 1 . . Siege Activations . | . . . . . . . . . . . . Martial Activations . | . . . . . . . . . . . . Shielding Activations . | . . . . . . . . . . . . Robots Disrupted . | . . . . . . . . . . . . Combat Hostiles . | . . . . . . . . . . . . Robots Corrupted 10 | . . . . . 2 1 . . 7 . . Combat Hostiles 9 | . . . . . 1 1 . . 7 . . Parts Fried 15 | . . . . . 2 2 . . 11 . . Impact Corruptions 32 | . . . . . 3 5 . . 24 . . Robots Melted . | . . . . . . . . . . . . Combat Hostiles . | . . . . . . . . . . . . Parts Melted 5 | . 2 . 1 . . . . . . . 2 Heat Transferred 1345 | 175 475 25 670 . . . . . . . . Parts Sabotaged 4 | . . . . . . 4 . . . . . Parts Stolen . | . . . . . . . . . . . . Parts Stripped . | . . . . . . . . . . . . Power Chain Reactions . | . . . . . . . . . . . . Alert | -11 -10 -10 -9 -9 -8 -8 -8 -7 -7 -7 -7 ------- Run | Yrd Mat Min Mat Min Mat Gar Mat Fac Gar Fac Gar Maximum Alert Level 3 | . 1 . 2 1 2 3 2 . 3 2 3 Low Security (%) 30 | 100 90 100 43 40 26 . . 100 33 . . Level 1 23 | . 9 . 41 59 41 10 33 . 17 22 24 Level 2 29 | . . . 14 . 32 45 66 . 42 77 29 Level 3 15 | . . . . . . 44 . . 6 . 46 Level 4 . | . . . . . . . . . . . . Level 5 . | . . . . . . . . . . . . High Security . | . . . . . . . . . . . . Max Security . | . . . . . . . . . . . . Peak Influence 1035 | 5 223 122 432 267 439 1035 634 182 805 422 926 Initial 504 | . . 82 8 102 61 278 504 174 57 422 274 Average 389 | 1 91 70 214 210 281 661 472 135 356 407 650 Influence Increases 5298 | 10 333 80 704 225 629 867 325 18 1105 . 1002 Destroy 0b10 Robot/C 2400 | . 120 60 320 160 300 420 140 . 400 . 480 Destroy 0b10 Robot/NC 110 | 10 5 . 50 . 25 5 . . 5 . 10 Destroy Leader 374 | . 22 10 106 20 96 20 50 . 20 . 30 Allied During Kill 403 | . . . . . 5 22 48 . 181 . 147 Successful Hack 172 | . 21 . 15 . 42 14 25 18 37 . . Select Force Hacks 90 | . 30 . 30 . 30 . . . . . . Disable Machine 105 | . . . 30 . 30 . 15 . 15 . 15 Anti-Garrison Action 550 | . . . . . . 200 . . 250 . 100 Destroy Structure 494 | . . 10 3 . 11 156 2 . 152 . 160 Partial Spotted 180 | . . . 45 . 75 15 45 . . . . Lose Combat Pursuer 420 | . 135 . 105 45 15 15 . . 45 . 60 Influence Decreases 4392 | 10 120 271 462 332 358 260 976 320 382 413 488 Entered New Map 1820 | . . 131 14 162 96 150 531 210 25 383 118 Time Decay 1210 | 10 110 130 278 170 222 . 150 110 . 30 . Lost Part 381 | . 10 10 20 . 20 110 . . 91 . 120 Lost Ally 556 | . . . . . 20 . 20 . 266 . 250 Purge Threat 425 | . . . 150 . . . 275 . . . . Squads Dispatched 13 | . 1 . 6 . 2 . 2 2 . . . Investigation 9 | . 1 . 4 . 2 . 1 1 . . . Extermination . | . . . . . . . . . . . . Reinforcement 4 | . . . 2 . . . 1 1 . . . Assault . | . . . . . . . . . . . . Garrison . | . . . . . . . . . . . . Intercept . | . . . . . . . . . . . . Searches Triggered . | . . . . . . . . . . . . Construction Impeded . | . . . . . . . . . . . . Haulers Reinforced 1 | . . . . . . . . 1 . . . Active Scanning Responses . | . . . . . . . . . . . . Cargo Convoy Interrupts . | . . . . . . . . . . . . Alert ID Control Effect 25 | . . . . . . . . . 19 . 6 Stealth | -11 -10 -10 -9 -9 -8 -8 -8 -7 -7 -7 -7 --------- Run | Yrd Mat Min Mat Min Mat Gar Mat Fac Gar Fac Gar Distress Signals 11 | . 2 . 1 . 2 . 1 . . . 5 Communications Jammed . | . . . . . . . . . . . . Distress Signals . | . . . . . . . . . . . . Times Spotted 221 | . 20 3 33 12 25 27 10 . 42 . 49 Peak Tracking Total 8 | . 6 3 6 4 4 8 3 . 4 . 6 Tactical Retreats 19 | . 3 . 5 3 1 1 . . 2 . 4 Traps | -11 -10 -10 -9 -9 -8 -8 -8 -7 -7 -7 -7 ------- Run | Yrd Mat Min Mat Min Mat Gar Mat Fac Gar Fac Gar Traps Triggered 19 | . 2 . 1 . . 6 . . 7 . 3 Indirectly . | . . . . . . . . . . . . Trap Hack Attempts . | . . . . . . . . . . . . Triggered . | . . . . . . . . . . . . Disarmed . | . . . . . . . . . . . . Reprogrammed . | . . . . . . . . . . . . Reused . | . . . . . . . . . . . . Traps Extracted . | . . . . . . . . . . . . Installed . | . . . . . . . . . . . . Triggered . | . . . . . . . . . . . . Machines | -11 -10 -10 -9 -9 -8 -8 -8 -7 -7 -7 -7 ---------- Run | Yrd Mat Min Mat Min Mat Gar Mat Fac Gar Fac Gar Machines Disabled 18 | . . . 2 . 2 4 1 . 6 . 3 Max in Single Turn 1 | . . . 1 . 1 1 . . 1 . 1 Garrison Relay 9 | . . . . . . 3 . . 4 . 2 Machines Repaired . | . . . . . . . . . . . . Machines Dismantled . | . . . . . . . . . . . . Machines Sabotaged . | . . . . . . . . . . . . Overloaded Fab Kills . | . . . . . . . . . . . . Hacking | -11 -10 -10 -9 -9 -8 -8 -8 -7 -7 -7 -7 --------- Run | Yrd Mat Min Mat Min Mat Gar Mat Fac Gar Fac Gar Machines Accessed 43 | . 5 1 11 . 10 2 5 1 4 2 2 Terminals 32 | . 4 1 8 . 6 2 4 . 4 1 2 Fabricators . | . . . . . . . . . . . . Repair Stations 3 | . . . . . 2 . 1 . . . . Recycling Units 4 | . 1 . 2 . 1 . . . . . . Scanalyzers 1 | . . . 1 . . . . . . . . Garrison Access 3 | . . . . . 1 . . 1 . 1 . Total Hacks 119 | . 18 2 34 . 31 5 15 2 6 3 3 Successful 66 | . 9 . 15 . 21 2 12 2 3 1 1 Failed 53 | . 9 2 19 . 10 3 3 . 3 2 2 Catastrophic 11 | . 3 . 1 . 1 2 . . 1 2 1 Database Lockouts . | . . . . . . . . . . . . Manual 83 | . 19 2 26 . 21 2 10 1 . 2 . Terminals 96 | . 17 2 28 . 22 5 12 . 6 1 3 Fabricators . | . . . . . . . . . . . . Repair Stations 10 | . . . . . 7 . 3 . . . . Recycling Units 5 | . 1 . 3 . 1 . . . . . . Scanalyzers 3 | . . . 3 . . . . . . . . Garrison Access 5 | . . . . . 1 . . 2 . 2 . Terminal Hacks 28 | . 4 . 6 . 7 2 5 . 3 . 1 Robot Analysis 8 | . 3 . 2 . 3 . . . . . . Open Door 2 | . . . . . . 1 . . 1 . . Level Access Points 1 | . . . . . . . 1 . . . . Branch Access Points 3 | . 1 . 1 . 1 . . . . . . Emergency Access Points 2 | . . . . . . . . . 1 . 1 Terminal Index 1 | . . . . . 1 . . . . . . Unreport Threat 1 | . . . 1 . . . . . . . . Registered Components 2 | . . . . . 1 . 1 . . . . Zone Layout 6 | . . . 2 . 1 . 3 . . . . Security Stations 2 | . . . . . . 1 . . 1 . . Fabricator Hacks . | . . . . . . . . . . . . Repair Station Hacks 9 | . . . . . 6 . 3 . . . . Scan Component 5 | . . . . . 3 . 2 . . . . Repair 4 | . . . . . 3 . 1 . . . . Recycling Unit Hacks . | . . . . . . . . . . . . Scanalyzer 2 | . . . 2 . . . . . . . . Insert Component 1 | . . . 1 . . . . . . . . Analyze 1 | . . . 1 . . . . . . . . Garrison Access Hacks 3 | . . . . . 1 . . 1 . 1 . Unlock Access 3 | . . . . . 1 . . 1 . 1 . Unauthorized Hacks 24 | . 5 . 7 . 7 . 4 1 . . . Terminals 20 | . 4 . 6 . 6 . 4 . . . . Botnet 20 | . 4 . 6 . 6 . 4 . . . . Fabricators . | . . . . . . . . . . . . Repair Stations . | . . . . . . . . . . . . Recycling Units 3 | . 1 . 1 . 1 . . . . . . Tunnel 3 | . 1 . 1 . 1 . . . . . . Scanalyzers . | . . . . . . . . . . . . Garrison Access 1 | . . . . . . . . 1 . . . Reprogram 1 | . . . . . . . . 1 . . . Data Cores Recovered . | . . . . . . . . . . . . Used . | . . . . . . . . . . . . Hacking Detections 37 | . 4 1 9 . 8 2 5 1 3 2 2 Full Trace Events 7 | . . 1 3 . 1 1 . . 1 . . Feedback Events 1 | . . . 1 . . . . . . . . Corruption 1 | . . . 1 . . . . . . . . Feedback Blocked . | . . . . . . . . . . . . Robot Schematics Acquired . | . . . . . . . . . . . . Robots Built . | . . . . . . . . . . . . Authchips . | . . . . . . . . . . . . Time . | . . . . . . . . . . . . Total Robot Build Rating . | . . . . . . . . . . . . Part Schematics Acquired 1 | . . . 1 . . . . . . . . Parts Built . | . . . . . . . . . . . . Authchips . | . . . . . . . . . . . . Time . | . . . . . . . . . . . . Total Part Build Rating . | . . . . . . . . . . . . Parts Repaired 4 | . . . . . 3 . 1 . . . . Time 109 | . . . . . 77 . 32 . . . . Parts Recycled . | . . . . . . . . . . . . Recycled Matter . | . . . . . . . . . . . . Retrieved Matter . | . . . . . . . . . . . . Retrieved Components . | . . . . . . . . . . . . Parts Scanalyzed 1 | . . . 1 . . . . . . . . Part Schematics Acquired 1 | . . . 1 . . . . . . . . Parts Damaged . | . . . . . . . . . . . . Bothacking | -11 -10 -10 -9 -9 -8 -8 -8 -7 -7 -7 -7 ------------ Run | Yrd Mat Min Mat Min Mat Gar Mat Fac Gar Fac Gar Used RIF Installer 4 | . . . . . . 1 . . 2 . 1 Watcher Feeds 1 | . . . . . . . . . . . 1 Alert ID Control 1 | . . . . . . . . . 1 . . Autooverride 1 | . . . . . . . . . 1 . . Robots Hacked 17 | . . . . . . 5 1 . 5 . 6 Non-combat 2 | . . . . . . . 1 . 1 . . Combat 15 | . . . . . . 5 . . 4 . 6 Autooverrided 3 | . . . . . . . . . . . 3 Robot Hacks Applied 17 | . . . . . . 5 4 . 5 . 3 purge_threat 2 | . . . . . . . 2 . . . . reprogram_traps 1 | . . . . . . . 1 . . . . spike_heat 1 | . . . . . . 1 . . . . . disable_weapons 1 | . . . . . . 1 . . . . . reboot_system 1 | . . . . . . . . . 1 . . overwrite_iff 1 | . . . . . . . . . 1 . . formatsys_low 2 | . . . . . . . 1 . 1 . . formatsys_high 8 | . . . . . . 3 . . 2 . 3 Relay Couplers Released 35 | . . . . . . 14 . . 15 . 6 Machine Destruction 35 | . . . . . . 14 . . 15 . 6 Attached 10 | . . . . . . 3 . . 6 . 1 Fabnet Peak Effective % . | . . . . . . . . . . . . Robots Rewired 11 | . . . . . . . . . 11 . . Allies Hacked 3 | . . . . . . . . . 1 . 2 Hacks Repelled . | . . . . . . . . . . . . Allies | -11 -10 -10 -9 -9 -8 -8 -8 -7 -7 -7 -7 -------- Run | Yrd Mat Min Mat Min Mat Gar Mat Fac Gar Fac Gar Total Allies 32 | . . . . 1 . 5 1 3 16 . 6 Largest Group 10 | . . . . 1 1 5 5 8 10 8 8 Highest-Rated Group 197 | . . . . 31 31 109 109 133 197 197 197 Highest-Rated Ally 32 | . . . . 31 31 31 31 31 32 31 31 Total Orders 9 | . . . . . . . . . 1 . 8 STAY 2 | . . . . . . . . . . . 2 FOLLOW 4 | . . . . . . . . . . . 4 AID 3 | . . . . . . . . . 1 . 2 Ally Attacks 314 | . . . . . 13 14 42 . 158 . 87 Total Damage 4927 | . . . . . 172 247 473 . 2369 . 1666 Kills 49 | . . . . . 1 3 6 . 26 . 13 Allies Corrupted 3 | . . . . . . . . . 3 . . Allies Melted . | . . . . . . . . . . . . Intel | -11 -10 -10 -9 -9 -8 -8 -8 -7 -7 -7 -7 ------- Run | Yrd Mat Min Mat Min Mat Gar Mat Fac Gar Fac Gar Active Infowar (turns) 2022 | 6 250 76 600 347 287 . . . . . 456 Optics 562 | . . . 545 . 17 . . . . . . Sensors 1132 | . . . 498 347 287 . . . . . . Seismic 1011 | 6 250 76 281 347 51 . . . . . . Jamming 456 | . . . . . . . . . . . 456 Robot Analysis Total 8 | . 3 . 2 . 3 . . . . . . Derelict Logs Recovered 2 | . . 1 . 1 . . . . . . . Drone Launches . | . . . . . . . . . . . . Drone Recoveries . | . . . . . . . . . . . . Exploration | -11 -10 -10 -9 -9 -8 -8 -8 -7 -7 -7 -7 ------------- Run | Yrd Mat Min Mat Min Mat Gar Mat Fac Gar Fac Gar Turns Passed 5579 | 61 250 262 605 347 469 790 306 234 1183 77 995 Spaces Moved 6454 | 63 401 666 1019 451 578 825 367 109 1089 161 725 Core 297 | 63 234 . . . . . . . . . . Treads . | . . . . . . . . . . . . Legs 182 | . . . . . . . . . 182 . . Wheels . | . . . . . . . . . . . . Hover 560 | . . . . . . . . . . . 560 Flight 5415 | . 167 666 1019 451 578 825 367 109 907 161 165 Fastest Speed 25 | 50 37 37 34 34 29 28 31 27 25 25 25 Average Speed 37 | 50 44 37 34 34 30 29 31 27 42 25 59 Slowest Speed 180 | 50 50 37 34 34 104 102 31 31 120 25 180 Overloaded Moves . | . . . . . . . . . . . . Propulsion Burnouts . | . . . . . . . . . . . . Robots Hopped 71 | . . 6 27 8 24 . . . 6 . . Potential Cave-ins . | . . . . . . . . . . . . Cave-ins Triggered . | . . . . . . . . . . . . Exploration Rate (%) 52 | 3 64 99 72 78 46 65 38 4 88 6 68 Regions Visited 11 Branch Regions 2 Pre-discovered Areas 3 | . 1 . 1 . 1 . . . . . . Known Exits Taken 7 | . 1 . 1 1 1 . 1 1 . 1 . Unknown Exits Taken 2 | 1 . 1 . . . . . . . . . Scrap Searched 3 | . . 2 . 1 . . . . . . . Spaces Dug 100 | . . . . . 4 37 2 . 37 . 20 Terrain Destroyed 146 | . . 12 . . 6 69 2 . 37 . 20 Melee 100 | . . . . . 4 37 2 . 37 . 20 Projectile 5 | . . . . . 2 3 . . . . . AOE 41 | . . 12 . . . 29 . . . . . Terrain Rammed . | . . . . . . . . . . . . Walls Destroyed . | . . . . . . . . . . . . Machines Disabled . | . . . . . . . . . . . . Actions | -11 -10 -10 -9 -9 -8 -8 -8 -7 -7 -7 -7 --------- Run | Yrd Mat Min Mat Min Mat Gar Mat Fac Gar Fac Gar Total 8451 | 75 443 676 1131 607 731 1137 552 311 1552 196 1040 Wait 1073 | . 16 6 27 150 81 91 177 201 156 34 134 Move 6311 | 62 400 654 966 435 532 824 366 108 1079 160 725 Hop 62 | . . 5 25 7 22 . . . 3 . . Pick Up 28 | 1 . 4 8 . 2 5 . . 6 . 2 Fast Attach 83 | 5 7 . 9 . 13 14 1 1 17 1 15 Attach 20 | . . 1 3 . 2 8 . 1 4 . 1 Detach 8 | . 2 1 . . 1 3 . . 1 . . Swap 32 | . 2 . 8 1 7 2 . . 10 . 2 Drop 64 | . 3 4 17 . 12 6 . . 14 1 7 Fire 200 | 7 13 1 68 14 51 14 . . 29 . 3 Melee 373 | . . . . . 8 110 7 . 125 . 123 Ram . | . . . . . . . . . . . . Kick . | . . . . . . . . . . . . Crush . | . . . . . . . . . . . . Escape Stasis 189 | . . . . . . 58 . . 105 . 26 Rewire 8 | . . . . . . 2 1 . 3 . 2 Trap . | . . . . . . . . . . . . Miscellaneous . | . . . . . . . . . . . . Route ------- -11/Scrapyard -10/Materials (discovered 3 exits: *Mat x2 / *Min) -10/Mines (discovered 2 exits: *Mat x2) -9/Materials (discovered 3 exits: *Mat x2 / *Min) -9/Mines (discovered 2 exits: *Mat / [*Exi]) -8/Materials (discovered 4 exits: *Fac / *Sto x2 / Gar) -8/Garrison (discovered 2 exits: *Mat x2) -8/Materials (discovered 4 exits: *Fac x3 / *Sto) -7/Factory (discovered 2 exits: Low / Gar) -7/Garrison (discovered 3 exits: *Fac x3) -7/Factory -7/Garrison (discovered 1 exit: [*Fac]) History --------- Turn | Location | Event 3 | -11/Scrapyard | Discovered new exit (range 15) 62 | -11/Scrapyard | Entered Materials 132 | -10/Materials | Discovered new exit (range 7) 149 | -10/Materials | Discovered new exit (range 14) 159 | -10/Materials | Identified exit to Mines 232 | -10/Materials | Discovered new exit (range 11) 312 | -10/Materials | Entered Mines 319 | -10/Mines | Received a Rocket Launcher from a helpful Derelict 326 | -10/Mines | Found a hidden stash of uninstalled traps 332 | -10/Mines | Learned 2 Materials zone layouts 349 | -10/Mines | Build established: Mutant 388 | -10/Mines | Discovered new exit (range 6) 422 | -10/Mines | Discovered new exit (range 5) 574 | -10/Mines | Entered Materials 574 | -9/Materials | Evolved 2 slots: Propulsion x1, Utility x1 575 | -9/Materials | Identified exit to Materials 598 | -9/Materials | Discovered new exit (range 11) 936 | -9/Materials | Discovered exit to Materials (range 17) 1129 | -9/Materials | Identified exit to Mines 1179 | -9/Materials | Entered Mines 1193 | -9/Mines | Met a Derelict bent on vengeance 1230 | -9/Mines | Core integrity fell below 50% 1298 | -9/Mines | Assembled infested the area 1303 | -9/Mines | Assisted by a Guerilla fighting off Assembled 1317 | -9/Mines | Deemed a non-threat by the Exiles lab entrance 1317 | -9/Mines | Discovered new exit (range 5) 1514 | -9/Mines | Discovered exit to Materials (range 14) 1521 | -9/Mines | Received a Mining Laser from a helpful Derelict 1526 | -9/Mines | Entered Materials 1526 | -8/Materials | Accompanied by 1 ally 1526 | -8/Materials | Evolved 2 slots: Propulsion x1, Utility x1 1541 | -8/Materials | Discovered new exit (range 14) 1645 | -8/Materials | Identified exit to Storage 1749 | -8/Materials | Repaired Lgt. Armor Plating 1788 | -8/Materials | Repaired Imp. Propulsion Shielding 1860 | -8/Materials | Destroyed 7 combat bots 1892 | -8/Materials | Repaired Lgt. Armor Plating 1910 | -8/Materials | Discovered new exit (range 9) 1995 | -8/Materials | Identified exit to Garrison 1995 | -8/Materials | Entered Garrison 2006 | -8/Garrison | Garrison Relay disabled 2099 | -8/Garrison | Core integrity fell below 50% 2142 | -8/Garrison | Lost 7 parts (1p1n2u3w) 2171 | -8/Garrison | Build established: Sprinter 2291 | -8/Garrison | Destroyed 7 combat bots 2387 | -8/Garrison | Triggered checkpoint 2410 | -8/Garrison | Installed Relay Interface Framework 2434 | -8/Garrison | Garrison Relay disabled 2457 | -8/Garrison | Triggered checkpoint 2482 | -8/Garrison | Core integrity fell below 20% 2555 | -8/Garrison | Discovered new exit (range 12) 2595 | -8/Garrison | Rescued a captive Derelict 2596 | -8/Garrison | Rescued a captive Derelict 2645 | -8/Garrison | Triggered checkpoint 2675 | -8/Garrison | Triggered checkpoint 2689 | -8/Garrison | Garrison Relay disabled 2701 | -8/Garrison | Learned Materials security intel 2724 | -8/Garrison | Discovered new exit (range 12) 2785 | -8/Garrison | Entered Materials 2785 | -8/Materials | Accompanied by 5 allies 2825 | -8/Materials | Repaired Imp. Ion Engine 2834 | -8/Materials | Identified exit to Factory 2951 | -8/Materials | Discovered exit to Storage (range 16) 2956 | -8/Materials | Met 7R-MNS 3091 | -8/Materials | Entered Factory 3091 | -7/Factory | Accompanied by 5 allies 3091 | -7/Factory | Evolved 2 slots: Propulsion x1, Utility x1 3092 | -7/Factory | Caught up to 7R-MNS 3092 | -7/Factory | Identified exit to Lower Caves 3122 | -7/Factory | Identified exit to Garrison 3325 | -7/Factory | Entered Garrison 3325 | -7/Garrison | Accompanied by 8 allies 3349 | -7/Garrison | Triggered checkpoint 3412 | -7/Garrison | Lost 4 allies 3463 | -7/Garrison | Lost 3 allies 3468 | -7/Garrison | Expanded RIF knowledge: Alert ID Control 3489 | -7/Garrison | Lost 8 parts (1p3n3u1w) 3628 | -7/Garrison | Garrison Relay disabled 3701 | -7/Garrison | Triggered checkpoint 3723 | -7/Garrison | Garrison Relay disabled 3769 | -7/Garrison | Build established: Commander-Mutant 3801 | -7/Garrison | Triggered checkpoint 3804 | -7/Garrison | Triggered checkpoint 3815 | -7/Garrison | Triggered checkpoint 3831 | -7/Garrison | Triggered checkpoint 3909 | -7/Garrison | Lost 3 allies 3929 | -7/Garrison | Triggered checkpoint 3975 | -7/Garrison | Garrison Relay disabled 4001 | -7/Garrison | Discovered new exit (range 10) 4132 | -7/Garrison | Build established: Bothacker-Sprinter 4282 | -7/Garrison | Discovered new exit (range 12) 4315 | -7/Garrison | Rescued a captive Derelict 4357 | -7/Garrison | Expanded RIF knowledge: Autooverride 4437 | -7/Garrison | Discovered new exit (range 5) 4448 | -7/Garrison | Garrison Relay disabled 4451 | -7/Garrison | Triggered checkpoint 4484 | -7/Garrison | Learned Factory security intel 4508 | -7/Garrison | Entered Factory 4508 | -7/Factory | Accompanied by 8 allies 4539 | -7/Factory | Identified exit to Garrison 4585 | -7/Factory | Entered Garrison 4585 | -7/Garrison | Accompanied by 8 allies 4861 | -7/Garrison | Triggered checkpoint 4897 | -7/Garrison | Garrison Relay disabled 4988 | -7/Garrison | Core integrity fell below 50% 5065 | -7/Garrison | Build established: Bothacker-Mutant 5100 | -7/Garrison | Lost 4 allies 5176 | -7/Garrison | Triggered checkpoint 5239 | -7/Garrison | Triggered checkpoint 5257 | -7/Garrison | Core integrity fell below 20% 5276 | -7/Garrison | Garrison Relay disabled 5344 | -7/Garrison | Triggered checkpoint 5395 | -7/Garrison | Triggered checkpoint 5446 | -7/Garrison | Lost 3 allies 5514 | -7/Garrison | Expanded RIF knowledge: Watcher Feeds 5519 | -7/Garrison | Discovered new exit (range 3) 5551 | -7/Garrison | Triggered checkpoint 5580 | -7/Garrison | Destroyed by Y-54 Guardian with Gatling Laser Last Messages --------------- 05470_ Y-54 Guardian suffers critical hit (Impale). 05470_ Gatling Laser melted. 05470_ Y-54 Guardian destroyed. 05474_ Acquired Imp. Light Armor Plating. 05476_ Acquired 10 matter. 05479_ W-25 Informer suffers critical hit (Impale). 05479_ W-25 Informer destroyed. 05486_ Connecting with Garrison Terminal... 05502_ Detecting nearby RIF Installer. Initiating installation procedure... 05514_ Expanded RIF knowledge: Watcher Feeds. 05519_ EXIT=FOUND 05528_ System corrupted: Substantial component data lost. 05554_ Destroyed VTOL Module. 05558_ S-27 Virus destroyed. 05573_ Remote Datajack destroyed. 05577_ Gravmag System destroyed. Map ----- +----------------------------------------------------+ | ???????????????????????????????????????????????? | | ????????????????????#####??????????????????????? | | ????????????????????#"""#?????????##???????????? | | ????????????????????#" "#?????????"#???????????? | | ????????????????????#" "#????#####"#####???????? | | ????????????????????#" "#????# """""#???????? | | ????????????????????# #????# " "#???????? | | ????????????????????## ##????# "#???????? | | ?????????????????????# ####### " "#???????? | | ?????????????????????# """ ""#???####? | | ?????????????????????# ####### " #???#""#? | | ?????????????????????# #?????# #???# T#? | | ?????????????????????# #?????# #???# "#? | | ????????????????????##+##????# #???# ##? | | ????????????????????# #????##### #####?### ### | | ????????????????????# < ##########"##????#[[ !!# | | ????????????????????# ######[ %!# | | ????????????????????# " "[ !# | | ????????????????????############## ######[ !# | | ?????????????????????????????????# #????###*### | | ???????????????????##????????????# #??????#%#?? | | ????????????????????!###?????????# #??????+[#?? | | ????????????????????? #?????????# #??????# #?? | | ?????????????????????# #?????????# #??????#%#?? | | ????????????????###### ########### ########+##? | | ????????????????# @s ![#? | | ????????????????# ### Y########## #? | | ????????????????????#=% #????????# ######## #? | | ????????????????????##[##????????# ######## #? | | ?????????????????????# #?????????# ## " #? | | ?????????????????????# ########### ## ##### #? | | ?????????????????????# " +??????# #? | | ?????????????????????# ########### #??????# ## | | ?????????????????????# #?????????# #??????# ## | | ?????????????????????#+#?????????# #?????## ## | | ?????????????????????????????????# ##+#### | | ?????????????????????????????????# | | ????????????????+?????????????? ^ | | ????????????????????????????????######+#### ## | | ??????????????????????????????????????????# ## | | ????????????????????????????????????????+?" | | ??????????????????????????????????????????" | | ??????????????????????????????????????????" | | ??????????????????????????????????????????" | | ??????????????????????????????????????????# ## | | #######???????????????????????????????????# ## | | #""## ###?????????????????????????????????# | | #" = #############?????????????????????# | | #"!=### ## ! !/! ]]#?????????????????????# | | #" =### #" ! #?????????????????????## ## | +----------------------------------------------------+ Best States ------------- Heat Dissipation 48 Energy Generation 15 Energy Capacity 265 Matter Stores 300 Matter Capacity 300 Sight Range 18 Robot Scan Range 14 Terrain Scan Density 10 Jamming Range 14 Armor Coverage 600 Core Shielding 30 Propulsion Shielding 66 Evasion (%) 65 Melee Accuracy 8 Offensive Hacking 20 Relay Coupler Types 4 Relay Coupler Value 85 Item Schematics ----------------- Hacking Suite | -9/Materials | Scanalyzed Robot Schematics ------------------ None Fabricated ------------ Nothing Repaired ---------- Lgt. Armor Plating | 26% | -8/Materials Imp. Propulsion Shielding | 70% | -8/Materials Lgt. Armor Plating | 6% | -8/Materials Imp. Ion Engine | 10% | -8/Materials Alien Tech Used ----------------- None Achievements -------------- None Challenges ------------ None Game ------ Seed ReactionCargoDeflector Manual? 0 Play Time 01:38:49 Cumulative 245.1 hours Start 2025.06.15 @ 19:31:13 End 2025.06.15 @ 21:07:03 Sessions 1 Manual Loads 0 Difficulty Rogue Special Mode None Game No. 126 Rogue 126 Adventurer 0 Explorer 0 Win Type - Total 16 Types 6/0/5/1/3/1/0/0/0/0 Lore% 82 Gallery% 70 Achievement% 66 Wizard Run 0 Options --------- Layout 1 ASCII 0 Keyboard 0 Movement Numpad Keybinds 0 Fullscreen 1 Font 24/Smallcaps Map View 50x35 Zoom Use 0% Tactical HUD 1 Map Filters NONE Filters NONE Steam 1 RUN: 27cae35a-4c2f-4370-824f-db6402853270